bitfinex/quotes_BTCUSD_20260308
["timestamp","ask_amount","ask_price","bid_price","bid_amount"]
[1772928001052,0.00022001,67249.0,67239.0,0.02294217]
[1772928001373,0.00022001,67249.0,67240.0,0.024569]
[1772928001878,0.00022001,67249.0,67235.0,0.001]
[1772928002074,0.00022001,67249.0,67236.0,0.024569]
[1772928003067,0.00022001,67249.0,67240.0,0.001]
[1772928003388,0.00022001,67249.0,67236.0,0.024569]
[1772928003938,0.1491,67242.0,67236.0,0.024569]
[1772928004366,0.1491,67242.0,67228.0,0.00040016]
[1772928004562,0.1491,67242.0,67236.0,0.001]
[1772928005220,0.1491,67242.0,67233.0,0.024569]
[1772928005422,0.1491,67242.0,67236.0,0.002]
[1772928005745,0.1491,67242.0,67236.0,0.001]
[1772928005939,0.1491,67242.0,67236.0,0.002]
[1772928006168,0.08650535,67243.0,67236.0,0.001]
[1772928006330,0.07434998,67250.0,67238.0,0.024569]
[1772928006533,0.09925066,67267.0,67240.0,0.05080586]
[1772928006734,0.05637047,67264.0,67242.0,1.114287]
[1772928006939,0.02491937,67261.0,67238.0,0.024569]
[1772928007090,0.05637047,67258.0,67241.0,0.217744]
[1772928007290,0.07433129,67267.0,67242.0,0.00148]
[1772928007291,0.02491937,67255.0,67242.0,0.00148]
[1772928007524,0.05637047,67254.0,67240.0,0.024569]
[1772928007732,0.05637047,67254.0,67243.0,0.00148]
[1772928008034,0.05637047,67254.0,67240.0,0.024569]
[1772928008234,0.05637047,67254.0,67244.0,0.00148]
[1772928008940,0.05637047,67254.0,67245.0,0.07435497]
[1772928008941,0.07434612,67253.0,67245.0,0.07435497]
[1772928009606,0.07434508,67254.0,67246.0,0.02402008]
[1772928010104,0.07434286,67256.0,67246.0,0.02402008]
[1772928011458,0.0743428,67258.0,67246.0,0.09837314]
[1772928011657,0.13071327,67258.0,67246.0,0.09837355]
[1772928011856,0.00022001,67254.0,67246.0,0.09837317]
[1772928012062,0.00022001,67254.0,67246.0,0.02402008]
[1772928012258,0.00022001,67254.0,67246.0,0.09837365]
[1772928013601,0.07456608,67254.0,67246.0,0.09837365]
[1772928013801,0.07456608,67254.0,67246.0,0.02402008]
[1772928013964,0.07456608,67254.0,67246.0,0.0983738]
[1772928019226,0.07456608,67254.0,67247.0,0.00148]
[1772928023650,0.07456608,67254.0,67248.0,0.07435165]
[1772928024149,0.07456608,67254.0,67244.0,0.07435607]
[1772928024446,0.05637047,67253.0,67245.0,0.00148]
[1772928024627,0.05489047,67253.0,67244.0,0.07435607]
[1772928024830,0.05489047,67253.0,67245.0,0.00148]
[1772928025148,0.05341047,67253.0,67244.0,0.07435607]
[1772928025356,0.05341047,67253.0,67245.0,0.00148]
[1772928025652,0.05341047,67253.0,67244.0,0.07435607]
[1772928025838,0.05341047,67253.0,67245.0,0.00148]
[1772928026154,0.05341047,67253.0,67244.0,0.07435607]
[1772928026323,0.05341047,67253.0,67245.0,0.00148]
[1772928026661,0.05341047,67253.0,67244.0,0.07435607]
[1772928026821,0.05341047,67253.0,67245.0,0.00148]
[1772928027724,0.05341047,67253.0,67246.0,0.00148]
[1772928028155,0.05341047,67253.0,67241.0,0.07435718]
[1772928028156,0.07434723,67252.0,67237.0,0.07436381]
[1772928028357,0.05489047,67250.0,67238.0,0.00148]
[1772928028527,0.05637047,67249.0,67238.0,0.00148]
[1772928029274,0.05637047,67249.0,67237.0,0.07436381]
[1772928029473,0.05637047,67249.0,67239.0,0.00148]
[1772928030174,0.05637047,67249.0,67240.0,0.07436049]
[1772928031769,0.05637047,67249.0,67238.0,0.0002]
[1772928031971,0.05637047,67249.0,67239.0,0.00148]
[1772928032167,0.05637047,67249.0,67240.0,0.00015]
[1772928032451,0.12924113,67249.0,67241.0,0.00148]
[1772928032654,0.12776113,67249.0,67241.0,0.00148]
[1772928033057,0.12628113,67249.0,67241.0,0.00148]
[1772928033318,0.12628113,67249.0,67240.0,0.00015]
[1772928033452,0.12628113,67249.0,67242.0,0.00148]
[1772928033854,0.12628113,67249.0,67243.0,0.00148]
[1772928034259,0.12628113,67249.0,67242.0,0.07435771]
[1772928034466,0.05193047,67249.0,67243.0,0.00148]
[1772928034666,0.05193047,67249.0,67244.0,0.00148]
[1772928034865,0.06235844,67248.0,67244.0,0.00148]
[1772928035063,0.06087844,67248.0,67242.0,0.07435771]
[1772928035312,0.05939844,67248.0,67243.0,0.00148]
[1772928035696,0.05939844,67248.0,67244.0,0.00148]
[1772928035896,0.05791844,67248.0,67244.0,0.00148]
[1772928036072,0.05791844,67248.0,67243.0,0.07435714]
[1772928036073,0.05643844,67248.0,67243.0,0.07435714]
[1772928036273,0.05495844,67248.0,67244.0,0.00148]
[1772928036484,0.05495844,67248.0,67243.0,0.07435714]
[1772928036667,0.05495844,67248.0,67244.0,0.00148]
[1772928036921,0.05347844,67248.0,67244.0,0.00148]
[1772928037121,0.05347844,67248.0,67243.0,0.07435714]
[1772928037415,0.05347844,67248.0,67244.0,0.00148]
[1772928037820,0.07434684,67253.0,67244.0,0.00148]
[1772928038022,0.1491,67262.0,67245.0,0.07435497]
[1772928038219,0.07433466,67264.0,67245.0,0.07435497]
[1772928038220,0.06383844,67263.0,67246.0,0.02402008]
[1772928039601,0.00597001,67268.0,67247.0,1.341384]
[1772928039804,0.06383844,67267.0,67250.0,0.02283733]
[1772928040024,0.06383844,67266.0,67253.0,0.07434612]
[1772928040732,0.06361537,67266.0,67253.0,0.07434612]
[1772928040931,0.06373552,67266.0,67253.0,0.07434612]
[1772928041085,0.08801416,67266.0,67253.0,0.07434612]
[1772928042852,0.02439879,67266.0,67253.0,0.07434612]
[1772928043053,0.08823723,67266.0,67253.0,0.07434612]
[1772928043251,0.06383844,67265.0,67253.0,0.07434612]
[1772928045851,0.00037001,67274.0,67255.0,0.08969508]
[1772928046058,0.00037001,67274.0,67256.0,2.025635]
[1772928046232,0.00037001,67274.0,67257.0,1.959385]
[1772928046438,0.1491,67283.0,67263.0,0.02283733]
[1772928046638,0.08811708,67287.0,67268.0,0.02283733]
[1772928046844,0.06383844,67286.0,67268.0,0.02283733]
[1772928047373,0.08811708,67286.0,67268.0,0.02283733]
[1772928047572,0.07430249,67293.0,67269.0,0.11252]
[1772928047766,0.02427864,67291.0,67271.0,0.02283733]
[1772928047951,0.06383844,67288.0,67273.0,0.02283733]
[1772928048159,0.02427864,67288.0,67273.0,0.02283733]
[1772928048487,0.08811708,67287.0,67274.0,0.07432291]
[1772928049874,0.08811708,67287.0,67274.0,0.07532291]
[1772928051425,0.07430084,67294.0,67274.0,0.07532291]
[1772928051628,0.00022001,67287.0,67275.0,0.02283733]
[1772928052024,0.00022001,67294.0,67277.0,0.06685775]
[1772928052226,0.00022001,67294.0,67274.0,0.07532291]
[1772928052227,0.00022001,67294.0,67281.0,0.06685775]
[1772928052431,0.00022001,67294.0,67282.0,0.06685775]
[1772928052629,0.00022001,67294.0,67284.0,0.02283733]
[1772928052939,0.00022001,67294.0,67286.0,0.02283733]
[1772928053137,0.00034014,67294.0,67287.0,0.07430855]
[1772928053690,0.00034014,67294.0,67288.0,0.02283733]
[1772928054537,0.00015,67291.0,67288.0,0.02283733]
[1772928055274,0.00015,67291.0,67289.0,0.07430635]
[1772928057164,0.08811708,67290.0,67276.0,0.172449]
[1772928057350,0.00015,67291.0,67278.0,0.135159]
[1772928057552,0.00015,67291.0,67278.0,0.106937]
[1772928057762,0.06383844,67290.0,67279.0,0.00148]
[1772928057967,0.02427864,67289.0,67279.0,0.00148]
[1772928058228,0.00015,67291.0,67280.0,0.136647]
[1772928058427,0.00015,67291.0,67281.0,0.02283733]
[1772928058631,0.00015,67291.0,67282.0,0.00148]
[1772928058852,0.06417858,67294.0,67282.0,0.00148]
[1772928059051,0.06417858,67294.0,67283.0,0.07431297]
[1772928059280,0.00034014,67294.0,67283.0,0.07431297]
[1772928059879,0.08811708,67293.0,67283.0,0.07431297]
[1772928060090,0.00034014,67294.0,67283.0,0.07431297]
[1772928060260,0.06383844,67291.0,67283.0,0.07531297]
[1772928060461,0.08678708,67291.0,67283.0,0.07531297]
[1772928060659,0.08530708,67291.0,67283.0,0.07531297]
[1772928060861,0.08382708,67291.0,67283.0,0.07531297]
[1772928061185,0.02427864,67291.0,67283.0,0.07531297]
[1772928061387,0.00034014,67294.0,67283.0,0.07531297]
[1772928061576,0.00034014,67294.0,67283.0,0.0999226]
[1772928061766,0.00575,67295.0,67283.0,0.0999226]
[1772928061975,0.00575,67295.0,67283.0,0.10004273]
[1772928062300,0.0012,67300.0,67285.0,0.02460963]
[1772928062497,0.0012,67300.0,67286.0,0.00148]
[1772928062696,0.0012,67300.0,67287.0,0.02460963]
[1772928063470,0.0012,67300.0,67288.0,0.07430745]
[1772928065397,0.00022001,67294.0,67288.0,0.07430745]
[1772928065609,0.02524835,67301.0,67288.0,0.07430745]
[1772928065813,0.06862674,67300.0,67288.0,0.07430745]
[1772928069843,0.06862674,67300.0,67288.0,0.07413852]
[1772928072018,0.06884675,67300.0,67288.0,0.07413852]
[1772928072872,0.06862674,67299.0,67288.0,0.07413852]
[1772928074355,0.06862674,67299.0,67289.0,0.00148]
[1772928075968,0.06862674,67299.0,67290.0,0.07430524]
[1772928080595,0.06884675,67299.0,67290.0,0.07430524]
[1772928082511,0.14443721,67302.0,67291.0,0.02412598]
[1772928082673,0.00022001,67306.0,67291.0,0.02412598]
[1772928083211,0.02395748,67305.0,67291.0,0.02412598]
[1772928083411,0.06862674,67304.0,67291.0,0.02412598]
[1772928083611,0.06862674,67304.0,67292.0,0.07430303]
[1772928083915,0.06862674,67302.0,67293.0,0.00148]
[1772928084114,0.09127306,67302.0,67293.0,0.00148]
[1772928084284,0.08831307,67302.0,67293.0,0.00148]
[1772928085203,0.08831307,67302.0,67293.0,0.00348]
[1772928085721,0.08831307,67302.0,67294.0,0.07430082]
[1772928086899,0.08831307,67302.0,67294.0,0.07530082]
[1772928087324,0.08831307,67302.0,67294.0,0.07630082]
[1772928087924,0.00022001,67306.0,67295.0,0.02412598]
[1772928088926,0.00022001,67302.0,67295.0,0.02412598]
[1772928089130,0.00022001,67306.0,67295.0,0.02412598]
[1772928090115,0.00022001,67306.0,67296.0,0.0984246]
[1772928091138,0.00022001,67306.0,67296.0,0.07429862]
[1772928091305,0.00022001,67306.0,67296.0,0.07529862]
[1772928092595,0.00022001,67306.0,67296.0,0.07429862]
[1772928094336,0.00022001,67306.0,67295.0,0.07429862]
[1772928094507,0.00022001,67306.0,67294.0,0.07430082]
[1772928094508,0.06685351,67305.0,67297.0,0.00148]
[1772928094725,0.09081099,67305.0,67297.0,0.00148]
[1772928094926,0.00037001,67308.0,67297.0,0.00148]
[1772928095081,0.00022001,67316.0,67297.0,0.00148]
[1772928095320,0.00022001,67316.0,67299.0,0.02412598]
[1772928095958,0.00022001,67316.0,67300.0,0.975675]
[1772928096182,0.00575,67322.0,67304.0,0.02412598]
[1772928096311,0.00575,67322.0,67308.0,0.02412598]
[1772928097350,0.00022001,67320.0,67308.0,0.02412598]
[1772928098363,0.00022001,67320.0,67310.0,0.02247354]
[1772928098560,0.00022001,67320.0,67311.0,0.00148]
[1772928098763,0.00022001,67320.0,67310.0,0.02247354]
[1772928099078,0.01762176,67317.0,67311.0,0.00148]
[1772928099288,0.08447527,67317.0,67309.0,0.0728038]
[1772928099462,0.01762176,67318.0,67312.0,0.00148]
[1772928099849,0.01762176,67318.0,67313.0,0.00148]
[1772928100189,0.01758497,67317.0,67313.0,0.00148]
[1772928100395,0.01758497,67317.0,67314.0,0.00148]
[1772928100599,0.01758497,67317.0,67315.0,0.00148]
[1772928102724,0.01825509,67319.0,67315.0,0.00148]
[1772928103111,0.00615052,67322.0,67315.0,0.00148]
[1772928103320,0.00615052,67322.0,67315.0,0.09823047]
[1772928104154,0.00022001,67319.0,67315.0,0.09823047]
[1772928104523,0.00022001,67319.0,67316.0,0.02247354]
[1772928104728,0.00615052,67322.0,67317.0,0.07427544]
[1772928104968,0.00615052,67322.0,67318.0,0.02247354]
[1772928106762,0.00615052,67322.0,67317.0,0.07427544]
[1772928107824,0.00023052,67322.0,67317.0,0.07427544]
[1772928111466,0.00045053,67322.0,67317.0,0.07427544]
[1772928112952,0.00015,67324.0,67317.0,0.07427544]
[1772928113161,0.00027003,67324.0,67317.0,0.07427544]
[1772928116005,0.0004,67325.0,67317.0,0.07427544]
[1772928116307,0.0004,67325.0,67317.0,0.07439547]
[1772928119309,0.07466745,67325.0,67303.0,0.29679521]
[1772928119487,0.14443721,67324.0,67302.0,0.07429189]
[1772928119686,0.00148,67323.0,67310.0,0.0002]
[1772928119892,0.01869685,67320.0,67310.0,0.00148]
[1772928120206,0.08555036,67314.0,67304.0,0.07428898]
[1772928120523,0.01869685,67313.0,67305.0,0.00148]
[1772928120906,0.01869685,67313.0,67306.0,0.00148]
[1772928121736,0.01869685,67313.0,67307.0,0.00148]
[1772928122079,0.01869685,67313.0,67303.0,0.07449063]
[1772928122283,0.01869685,67313.0,67307.0,0.00148]
[1772928122582,0.01869685,67313.0,67304.0,0.07428935]
[1772928122779,0.01869685,67313.0,67305.0,0.00148]
[1772928123094,0.01869685,67313.0,67304.0,0.07428935]
[1772928123291,0.01869685,67313.0,67306.0,0.00148]
[1772928123477,0.07427633,67317.0,67306.0,0.00148]
[1772928123691,0.00926203,67317.0,67306.0,0.00148]
[1772928124724,0.08353761,67317.0,67306.0,0.00148]
[1772928124932,0.08353761,67317.0,67307.0,0.07428647]
[1772928126277,0.00926203,67317.0,67307.0,0.07428647]
[1772928128186,0.14655732,67319.0,67307.0,0.07428647]
[1772928128389,0.14655732,67319.0,67307.0,0.07448647]
[1772928128617,0.00022001,67317.0,67307.0,0.07448647]
[1772928130597,0.07449571,67317.0,67307.0,0.07448647]
[1772928130780,0.07449571,67317.0,67308.0,0.00148]
[1772928133908,0.14654134,67334.0,67313.0,0.07012646]
[1772928134100,0.07228406,67336.0,67314.0,0.0248647]
[1772928134312,0.07425404,67337.0,67314.0,0.0248647]
[1772928134313,0.08107737,67334.0,67314.0,0.0248647]
[1772928134493,0.00879331,67333.0,67314.0,0.0248647]
[1772928134718,0.07228406,67332.0,67314.0,0.0248647]
[1772928135545,0.07228406,67332.0,67315.0,0.0233847]
[1772928135736,0.07228406,67336.0,67315.0,0.09351116]
[1772928135936,0.07425558,67335.0,67317.0,0.0233847]
[1772928136180,0.14653964,67335.0,67317.0,0.0233847]
[1772928136386,0.0003678,67338.0,67321.0,0.959841]
[1772928136599,0.0003678,67338.0,67318.0,0.00148]
[1772928136600,0.0003678,67338.0,67319.0,1.034255]
[1772928136770,0.0003678,67338.0,67321.0,0.717232]
[1772928136968,0.0003678,67338.0,67324.0,0.07012646]
[1772928137173,0.0003678,67338.0,67325.0,0.07160646]
[1772928137472,0.0003678,67338.0,67326.0,0.0248647]
[1772928138166,0.0003678,67338.0,67328.0,0.0233847]
[1772928138719,0.00022001,67331.0,67328.0,0.0233847]
[1772928138922,0.0003678,67338.0,67328.0,0.0233847]
[1772928141097,0.0003678,67338.0,67330.0,0.0233847]
[1772928143151,0.0003678,67338.0,67332.0,0.03027698]
[1772928143361,0.0003678,67338.0,67334.0,0.03027698]
[1772928143556,0.0003678,67338.0,67335.0,0.00148]
[1772928144686,0.5,67340.0,67335.0,0.00148]
[1772928144887,0.00022001,67338.0,67335.0,0.03175698]
[1772928145156,0.5,67340.0,67335.0,0.03175698]
[1772928145433,0.5,67340.0,67335.0,0.07573546]
[1772928145695,0.5,67340.0,67336.0,0.03027698]
[1772928147261,0.3515211,67340.0,67337.0,0.07425338]
[1772928147462,0.1288027,67340.0,67337.0,0.07425338]
[1772928147685,0.05456325,67340.0,67337.0,0.07425338]
[1772928147967,0.00022001,67345.0,67337.0,0.07425338]
[1772928149597,0.07228406,67344.0,67333.0,0.07425752]
[1772928149951,0.07228406,67344.0,67334.0,0.00148]
[1772928150352,0.07228406,67344.0,67335.0,0.00148]
[1772928152134,0.14653,67344.0,67332.0,0.07425836]
[1772928152343,0.07228406,67343.0,67336.0,0.00148]
[1772928152512,0.07228406,67343.0,67331.0,0.07425779]
[1772928152716,0.07250126,67343.0,67332.0,0.00148]
[1772928153087,0.07250126,67343.0,67333.0,0.00148]
[1772928154069,0.07250126,67343.0,67334.0,0.00148]
[1772928154424,0.07250126,67343.0,67331.0,0.07425779]
[1772928154625,0.0002172,67343.0,67335.0,0.00148]
[1772928155032,0.0002172,67343.0,67336.0,0.00148]
[1772928155411,0.0002172,67343.0,67331.0,0.10453477]
[1772928155599,0.0002172,67343.0,67337.0,0.00148]
[1772928155840,0.0002172,67343.0,67331.0,0.07425779]
[1772928156071,0.0002172,67343.0,67332.0,0.03175698]
[1772928156492,0.0002172,67343.0,67333.0,0.10601477]
[1772928157020,0.0002172,67343.0,67334.0,0.00148]
[1772928157713,0.0002172,67343.0,67335.0,0.03027698]
[1772928158634,0.0002172,67343.0,67336.0,0.07425448]
[1772928158788,0.0002172,67343.0,67336.0,0.10453146]
[1772928159647,0.0002172,67343.0,67337.0,0.03027698]
[1772928160452,0.01,67344.0,67337.0,0.03027698]
[1772928161264,0.01,67344.0,67338.0,0.07425227]
[1772928162276,0.01,67346.0,67339.0,0.03027698]
[1772928162452,0.01011999,67346.0,67340.0,0.00148]
[1772928162635,0.0346,67352.0,67341.0,0.03027698]
[1772928163177,0.0346,67352.0,67342.0,0.03635792]
[1772928163416,0.0346,67352.0,67344.0,0.03635792]
[1772928163780,0.0077173,67352.0,67344.0,0.03635792]
[1772928164207,0.000324,67356.0,67344.0,0.10722625]
[1772928164536,0.00015,67358.0,67343.0,0.07424676]
[1772928164745,0.00015,67358.0,67346.0,0.07086833]
[1772928164926,0.00015,67358.0,67347.0,0.03783792]
[1772928165650,0.00015,67358.0,67349.0,0.03635792]
[1772928166345,0.07360067,67357.0,67348.0,0.07424125]
[1772928166540,0.06155656,67357.0,67350.0,0.00148]
[1772928167544,0.06155656,67357.0,67351.0,0.07571731]
[1772928167955,0.07360067,67356.0,67343.0,0.07424676]
[1772928168150,0.07360067,67356.0,67344.0,0.00148]
[1772928169694,0.07360067,67355.0,67345.0,0.00148]
[1772928170643,0.00015,67358.0,67345.0,0.00148]
[1772928170895,0.00015,67358.0,67346.0,0.03635792]
[1772928171733,0.00015,67358.0,67348.0,0.03635792]
[1772928171926,0.00037001,67358.0,67348.0,0.03635792]
[1772928173810,0.00037001,67358.0,67349.0,0.07424015]
[1772928174043,0.00037001,67358.0,67349.0,0.11059807]
[1772928176468,0.00037001,67358.0,67350.0,0.00147293]
[1772928176668,0.00037001,67358.0,67351.0,0.00148]
[1772928176822,0.00037001,67358.0,67351.0,0.03783792]
[1772928179078,0.00037001,67358.0,67352.0,0.07423684]
[1772928179281,0.00037001,67358.0,67352.0,0.11462449]
[1772928179563,0.08111924,67365.0,67353.0,0.04038765]
[1772928181665,0.07350684,67364.0,67351.0,0.07423701]
[1772928181863,0.07350684,67364.0,67352.0,0.00148]
[1772928183946,0.07350684,67364.0,67353.0,0.07423574]
[1772928184978,0.14773102,67364.0,67353.0,0.07423574]
[1772928186504,0.07652705,67363.0,67354.0,0.00148]
[1772928186701,0.07652705,67363.0,67355.0,0.00148]
[1772928186997,0.07652705,67363.0,67356.0,0.00148]
[1772928187242,0.07652705,67363.0,67357.0,0.00148]
[1772928187794,0.07652705,67363.0,67346.0,0.07424345]
[1772928187795,0.07652705,67363.0,67355.0,0.00148]
[1772928188353,0.15075287,67362.0,67355.0,0.00148]
[1772928189433,0.07652705,67361.0,67355.0,0.00148]
[1772928189639,0.07652705,67361.0,67348.0,0.07424089]
[1772928189842,0.07652705,67361.0,67349.0,0.00148]
[1772928190002,0.07652705,67361.0,67350.0,0.00148]
[1772928190203,0.07652705,67361.0,67343.0,0.0002]
[1772928190416,0.07652705,67361.0,67344.0,0.00148]
[1772928190745,0.07652705,67361.0,67343.0,0.07444661]
[1772928190746,0.07652705,67361.0,67345.0,0.00148]
[1772928191098,0.07652705,67361.0,67346.0,0.03917216]
[1772928191700,0.07422802,67360.0,67347.0,0.07424235]
[1772928191898,0.15075503,67361.0,67347.0,0.07424235]
[1772928192501,0.07422798,67361.0,67344.0,0.07424495]
[1772928192700,0.07652705,67360.0,67345.0,0.00148]
[1772928194046,0.07652705,67358.0,67345.0,0.0757243]
[1772928196127,0.07422798,67361.0,67345.0,0.0757243]
[1772928196327,0.07422798,67361.0,67346.0,0.03907938]
[1772928196573,0.08422798,67361.0,67346.0,0.03907938]
[1772928198598,0.08422798,67361.0,67346.0,0.11332235]
[1772928199228,0.09112468,67361.0,67346.0,0.11332235]
[1772928199989,0.09112468,67361.0,67347.0,0.03899813]
[1772928200761,0.09112468,67361.0,67348.0,0.04047813]
[1772928202984,0.16765173,67361.0,67348.0,0.00148]
[1772928203486,0.07652705,67360.0,67349.0,0.00148]
[1772928205618,0.07422913,67359.0,67346.0,0.0002]
[1772928205817,0.07422913,67359.0,67347.0,0.00148]
[1772928206966,0.07652705,67358.0,67343.0,0.0002]
[1772928207125,0.07422913,67359.0,67341.0,0.00015]
[1772928207126,0.07652705,67356.0,67341.0,0.00015]
[1772928207342,0.08342375,67356.0,67342.0,0.00148]
[1772928207962,0.07652705,67354.0,67342.0,0.00148]
[1772928208163,0.07652705,67354.0,67341.0,0.00015]
[1772928208541,0.07652705,67354.0,67341.0,0.00163]
[1772928208937,0.07652705,67354.0,67341.0,0.00015]
[1772928209135,0.07652705,67354.0,67341.0,0.00163]
[1772928210184,0.07423574,67353.0,67341.0,0.00163]
[1772928212782,0.0068967,67356.0,67342.0,0.03857441]
[1772928212982,0.0068967,67356.0,67344.0,0.03857441]
[1772928213160,0.0068967,67356.0,67345.0,0.07442428]
[1772928213359,0.0068967,67356.0,67346.0,0.03854909]
[1772928213565,0.0068967,67356.0,67345.0,0.07442428]
[1772928213566,0.0068967,67356.0,67348.0,0.03854909]
[1772928217411,0.0068967,67356.0,67348.0,0.07424099]
[1772928217591,0.0068967,67356.0,67349.0,0.03847641]
[1772928218598,0.0068967,67356.0,67350.0,0.11271545]
[1772928218780,0.0068967,67356.0,67351.0,0.03847641]
[1772928219007,0.01022001,67361.0,67352.0,0.03847641]
[1772928219184,0.01022001,67361.0,67354.0,0.02695404]
[1772928220785,0.01022001,67361.0,67354.0,0.10118802]
[1772928225433,0.07421417,67373.0,67354.0,0.07423398]
[1772928225632,0.00037207,67370.0,67354.0,0.07423398]
[1772928226006,0.00037207,67370.0,67355.0,0.10126961]
[1772928226211,0.00037207,67370.0,67355.0,0.07442428]
[1772928226412,0.00037207,67370.0,67357.0,0.02684533]
[1772928227243,0.00037207,67370.0,67358.0,0.02311851]
[1772928227571,0.00037207,67370.0,67360.0,0.02311851]
[1772928227873,0.00037207,67370.0,67362.0,0.02311851]
[1772928230362,0.00037207,67370.0,67364.0,0.02311851]
[1772928230565,0.00059208,67370.0,67366.0,0.02311851]
[1772928233657,0.00059208,67370.0,67365.0,0.00148]
[1772928234243,0.00059208,67370.0,67366.0,0.00148]
[1772928239183,0.00059208,67370.0,67366.0,0.02459851]
[1772928240529,0.00059208,67370.0,67366.0,0.09881945]
[1772928240731,0.00059208,67370.0,67366.0,0.07570094]
[1772928240938,0.00059208,67370.0,67367.0,0.02311851]
[1772928244029,0.00059208,67370.0,67366.0,0.00148]
[1772928244546,0.08277679,67370.0,67353.0,0.02240658]
[1772928244707,0.01355214,67369.0,67359.0,0.00148]
[1772928245131,0.01355214,67369.0,67360.0,0.00148]
[1772928246559,0.06916824,67370.0,67360.0,0.07570704]
[1772928247294,0.00059208,67370.0,67360.0,0.07570704]
[1772928247506,0.00059208,67370.0,67363.0,0.02240658]
[1772928249177,0.00059208,67370.0,67365.0,0.0213594]
[1772928249370,0.00059208,67370.0,67366.0,0.0228394]
[1772928251128,0.00059208,67370.0,67366.0,0.09705998]
[1772928251312,0.00059208,67370.0,67367.0,0.0213594]
[1772928251520,0.09144069,67376.0,67367.0,0.0213594]
[1772928251521,0.01575,67376.0,67367.0,0.0213594]
[1772928251701,0.00060934,67375.0,67367.0,0.0213594]
[1772928256223,0.00082935,67375.0,67367.0,0.0213594]
[1772928257888,0.00082935,67375.0,67368.0,0.00148]
[1772928264664,0.07504099,67375.0,67368.0,0.00148]
[1772928265293,0.00082935,67375.0,67368.0,0.00148]
[1772928269178,0.07504092,67375.0,67368.0,0.00148]
[1772928270237,0.00082935,67375.0,67368.0,0.00148]
[1772928273548,0.00082935,67375.0,67368.0,0.0756992]
[1772928273943,0.00093725,67375.0,67368.0,0.0756992]
[1772928275941,0.00093725,67375.0,67368.0,0.00148]
[1772928279203,0.00093725,67375.0,67368.0,0.09679855]
[1772928279399,0.00093725,67375.0,67368.0,0.07569816]
[1772928294189,0.00093725,67375.0,67368.0,0.00148]
[1772928294593,0.00093725,67375.0,67368.0,0.07569914]
[1772928299100,0.22182653,67380.0,67368.0,0.07569914]
[1772928299308,0.22182653,67380.0,67368.0,0.07575848]
[1772928299731,0.24307652,67380.0,67368.0,0.07575848]
[1772928300729,0.14762,67380.0,67371.0,0.02110039]
[1772928300907,0.14762,67380.0,67368.0,0.07575848]
[1772928300908,0.07262307,67379.0,67368.0,5.934e-05]
[1772928301114,0.02124999,67376.0,67368.0,5.934e-05]
[1772928301443,0.02124999,67376.0,67360.0,0.07442802]
[1772928301612,0.02187009,67372.0,67359.0,0.07442908]
[1772928301827,0.00010679,67376.0,67359.0,0.07442908]
[1772928301828,0.07132038,67369.0,67359.0,0.07590908]
[1772928302001,0.02187009,67368.0,67359.0,0.07590895]
[1772928302203,0.02187009,67368.0,67359.0,0.07442895]
[1772928302423,0.02187009,67368.0,67360.0,0.00148]
[1772928303433,0.02187009,67368.0,67360.0,0.075708]
[1772928304012,0.02187009,67368.0,67360.0,0.074228]
[1772928304253,0.02187009,67368.0,67361.0,0.00148]
[1772928306021,0.02187009,67368.0,67361.0,0.07570679]
[1772928306224,0.15762,67371.0,67361.0,0.07570679]
[1772928306664,0.00022001,67368.0,67361.0,0.07570679]
[1772928307885,0.15762,67371.0,67361.0,0.09740059]
[1772928308843,0.15762,67371.0,67361.0,0.07570679]
[1772928309049,0.00010679,67376.0,67362.0,0.0656497]
[1772928309254,0.00010679,67376.0,67365.0,0.02020284]
[1772928309797,0.00010679,67376.0,67368.0,0.02020284]
[1772928310098,0.00022001,67382.0,67372.0,0.02020284]
[1772928310224,0.00022001,67382.0,67373.0,0.02020284]
[1772928311019,0.00022001,67382.0,67374.0,0.02020284]
[1772928311146,0.00022001,67382.0,67375.0,0.00148]
[1772928313606,0.00022001,67382.0,67376.0,0.0742104]
[1772928316333,0.00022001,67389.0,67377.0,0.02020284]
[1772928316534,0.00022001,67389.0,67376.0,0.0742104]
[1772928316535,0.00022001,67389.0,67379.0,0.0656497]
[1772928316852,0.00022001,67389.0,67381.0,0.02020284]
[1772928317031,0.00022001,67389.0,67382.0,0.00148]
[1772928317571,0.0001826,67391.0,67383.0,0.09440553]
[1772928318180,0.0001826,67401.0,67383.0,0.07420269]
[1772928318334,0.07436552,67401.0,67385.0,0.02020284]
[1772928318539,0.07436552,67401.0,67386.0,0.02020284]
[1772928318741,0.0946703,67401.0,67386.0,0.02012326]
[1772928318939,0.07588403,67400.0,67386.0,0.02012326]
[1772928319674,0.07588403,67400.0,67387.0,0.07419828]
[1772928319837,0.07417969,67404.0,67387.0,0.07419828]
[1772928319838,0.07175494,67415.0,67388.0,0.00148]
[1772928320038,0.07175494,67415.0,67391.0,0.02020284]
[1772928320039,0.06674816,67411.0,67391.0,0.02020284]
[1772928320248,0.02030478,67408.0,67392.0,0.00148]
[1772928320463,0.02030478,67407.0,67393.0,0.00148]
[1772928320642,0.02030478,67407.0,67393.0,0.00140042]
[1772928321647,0.00022001,67398.0,67394.0,0.02020284]
[1772928321864,0.00022001,67398.0,67394.0,0.00148]
[1772928322062,0.00022001,67398.0,67394.0,0.02168284]
[1772928322693,0.00022001,67398.0,67394.0,0.00148]
[1772928323887,0.00022001,67398.0,67394.0,0.07566992]
[1772928324898,0.02030478,67396.0,67387.0,0.07436917]
[1772928325103,0.02030478,67396.0,67388.0,0.00148]
[1772928325526,0.02030478,67396.0,67388.0,0.00140042]
[1772928325905,0.02030478,67396.0,67388.0,0.07559696]
[1772928326635,0.07418947,67395.0,67387.0,0.0001709]
[1772928326838,0.02030478,67393.0,67383.0,0.00148]
[1772928327197,0.02030478,67392.0,67380.0,0.07420584]
[1772928327371,0.02030478,67392.0,67384.0,0.00148]
[1772928327750,0.02030478,67390.0,67380.0,0.07420584]
[1772928327961,0.02030478,67388.0,67381.0,0.00148]
[1772928328164,0.02030478,67388.0,67375.0,0.0004]
[1772928328499,0.02030478,67387.0,67383.0,0.0002]
[1772928332560,0.09450416,67386.0,67376.0,0.0061495]
[1772928332794,0.09450416,67386.0,67376.0,0.0076295]
[1772928333174,0.09450416,67386.0,67376.0,0.08183982]
[1772928333603,0.09450416,67386.0,67377.0,0.00148]
[1772928336098,0.00148,67391.0,67377.0,0.00148]
[1772928336099,0.07418774,67397.0,67377.0,0.07568914]
[1772928336390,0.07418774,67397.0,67380.0,0.02020284]
[1772928336391,0.02178478,67396.0,67380.0,0.02020284]
[1772928336669,0.02030478,67394.0,67381.0,0.07420489]
[1772928336786,0.00148,67393.0,67381.0,0.07420489]
[1772928336990,0.07440659,67398.0,67383.0,0.06533275]